Cogmind - Beta 14 *** ADVENTURER MODE // 2024.10.05 @ 07:10:29 // Winter2019/RPGLIKE Player: Gallgagger Result: Self-destructed Performance ------------- Evolutions (0) 0 Regions Visited (5) 1000 Robots Destroyed (64) 320 Value Destroyed (2001) 2001 Prototype IDs (2) 40 Alien Tech Used (0) 0 Bonus (36) 36 TOTAL SCORE: 3397 Bonus ------- Follower Combat Kills 86 Friendly Fire -50 Cogmind --------- Core Integrity 273/1300 Matter 272/300 Energy 400/400 System Corruption 1% Temperature Cool (0) Movement Treading (160) Location -9/Scraptown Parts ------- > --- POWER (2) -------- Ion Engine Ion Engine > --- PROPULSION (4) --- Light Treads Light Treads Light Treads > --- UTILITY (4) ------ Experimental Sensor Array Hardened Light Armor Plating Focal Shield > --- WEAPON (3) ------- Beam Rifle Heavy Flak Cannon > --- INVENTORY (2) ---- (None) Peak State ------------ > --- POWER ------------ Ion Engine Ion Engine > --- PROPULSION ------- Light Treads Light Treads Light Treads Improved Treads > --- UTILITY ---------- Experimental Sensor Array Signal Interpreter Hardened Light Armor Plating Tower Shield Focal Shield > --- WEAPON ----------- Beam Rifle Particle Cannon Heavy Flak Cannon > --- INVENTORY -------- (None) [Rating: 53] Favorites ----------- Power Ion Engine Engine Ion Engine Propulsion Flight Unit Treads Light Treads Wheel Wheel Flight Unit Flight Unit Utility Signal Interpreter Device Experimental Sensor Array Processor Signal Interpreter Protection Tower Shield Weapon Makeshift Axe Energy Gun Subdweller Laser Energy Cannon Beam Cannon Ballistic Gun Light Assault Rifle Ballistic Cannon Heavy Flak Cannon Launcher Rocket Launcher Slashing Weapon Makeshift Axe Build | -11 -10 -10 -10 -9 -9 ------- Run | Yrd Mat Min Sub Rec Scr Slots Evolved 9 | 4 1 2 1 1 . Power 1 | 1 . . . . . Propulsion 3 | 1 1 1 . . . Utility 3 | 1 . 1 1 . . Weapon 2 | 1 . . . 1 . Parts Attached 40 | 6 7 4 8 6 9 Power 2 | 2 . . . . . Engine 2 | 2 . . . . . Core . | . . . . . . Reactor . | . . . . . . Propulsion 14 | 2 4 1 . 5 2 Treads 6 | . . . . 4 2 Leg . | . . . . . . Wheel 2 | 2 . . . . . Hover . | . . . . . . Flight 6 | . 4 1 . 1 . Utility 8 | . 1 2 3 . 2 Device 3 | . . 2 . . 1 Storage . | . . . . . . Processor 1 | . 1 . . . . Hackware . | . . . . . . Protection 4 | . . . 3 . 1 Artifact . | . . . . . . Weapon 16 | 2 2 1 5 1 5 Energy Gun 6 | . 1 1 2 . 2 Energy Cannon 2 | . 1 . . . 1 Ballistic Gun 3 | 2 . . 1 . . Ballistic Cannon 2 | . . . . . 2 Launcher 1 | . . . 1 . . Special Weapon . | . . . . . . Impact Weapon . | . . . . . . Slashing Weapon 2 | . . . 1 1 . Piercing Weapon . | . . . . . . Special Melee Weapon . | . . . . . . Unidentified Prototypes 2 | . . 1 1 . . Parts Lost 1 | . . . . . 1 Power . | . . . . . . Propulsion . | . . . . . . Utility 1 | . . . . . 1 Weapon . | . . . . . . Highest Loss Streak 1 | . . . . . 1 To Critical Strikes . | . . . . . . Average Slot Usage (%) 61 | . 80 98 68 55 54 Engine 11 | . 23 20 12 10 10 Treads 9 | . . . . 6 20 Flight 12 | . 19 33 25 14 . Device 6 | . . 12 7 5 6 Processor 5 | . 4 10 6 5 4 Protection 4 | . . . 4 5 6 Energy Gun 3 | . . 10 5 4 . Energy Cannon 2 | . 3 10 4 . . Ballistic Gun 1 | . 18 . . . . Slashing Weapon 3 | . . . 1 4 4 Peak Build Rating 53 | 6 8 20 42 43 53 Average Rating 37 | 4 6 13 34 42 43 On Entrance 19 | . 6 8 20 42 40 Naked Turns . | . . . . . . Heaviest Build 70 | 12 14 18 56 56 70 Greatest Support 93 | 26 26 21 26 90 93 Greatest Overweight (x) 2 | . 1 1 2 2 . Average Overweight (x) . | . . . . 1 . Largest Inventory Capacity 2 | . 2 2 2 2 2 Average Capacity 1 | . 1 2 2 2 2 Most Carried 2 | . 2 2 2 2 2 Average Carried 1 | . . 2 1 1 1 Final Capacity 2 | . 2 2 2 2 2 Final Carried 2 | . 2 2 2 2 . Class Distribution -------------------- 44% | Mutant 39% | Commander-Mutant 5% | Sprinter 4% | Scavenger-Mutant Dominant Class ---------------- Mutant | -10/Materials Mutant | -10/Mines Mutant | -10/Subcaves Mutant | -9/Recycling Commander-Mutant | -9/Scraptown Resources | -11 -10 -10 -10 -9 -9 ----------- Run | Yrd Mat Min Sub Rec Scr Matter Collected 839 | 260 162 56 93 87 181 Remotely . | . . . . . . Salvage Created 2521 | . 525 200 562 988 246 Parts 157 | . 41 16 43 36 21 Haulers Intercepted 1 | . 1 . . . . Recyclers Shooed 1 | . . . . 1 . Parts Field Recycled . | . . . . . . Retrieved Matter . | . . . . . . Parts Self-Destructed 11 | . . . 11 . . Prevented . | . . . . . . Kills | -11 -10 -10 -10 -9 -9 ------- Run | Yrd Mat Min Sub Rec Scr Combat Hostiles Destroyed 55 | . 14 9 17 7 8 Melee 7 | . . . . 7 . Guns 23 | . 9 1 10 . 3 Cannons 21 | . 5 4 7 . 5 AOE 4 | . . 4 . . . Classes Destroyed 15 | . 3 2 3 3 4 Hauler 1 | . 1 . . . . Recycler 5 | . . . . 5 . Turret 2 | . . . 2 . . Watcher 3 | . 3 . . . . Swarmer 9 | . . 5 4 . . Grunt 17 | . 14 2 . 1 . Sentry 5 | . . . . 5 . Programmer 1 | . . . . 1 . Artisan 1 | . . . 1 . . Subdweller 13 | . . . 13 . . Bolteater 1 | . . . . . 1 Federalist 2 | . . . . . 2 Scrapper 4 | . . . . . 4 Elite 1 | . . . . . 1 Assembled 2 | . . 2 . . . Best Kill Streak 5 | . 4 5 4 4 4 Combat Bots Only 5 | . 3 5 4 3 4 Max Kills in Single Turn 4 | . 1 4 1 1 1 Gunslinging . | . . . . . . Exploded 4 | . . 4 . . . Melee 1 | . . . . 1 . Uniques/NPCs Destroyed . | . . . . . . Combat | -11 -10 -10 -10 -9 -9 -------- Run | Yrd Mat Min Sub Rec Scr Hostile Shots Fired 283 | . 49 14 124 35 61 Missed 108 | . 13 6 70 7 12 Damage Taken 3277 | . 358 79 856 312 1672 Core 2357 | . 284 60 656 140 1217 Absorbed by Shields . | . . . . . . Redirected to Core 1924 | . 231 60 457 140 1036 Ignored by Resistances 1515 | . 110 21 234 88 1062 Core Remaining (%) 100 | 100 . . . . . Volleys Fired 188 | . 64 15 80 . 29 Largest 3 | . 2 2 2 . 3 Hottest 177 | . 100 125 125 . 177 Shots Fired 375 | . 128 30 147 1 69 Gun 235 | . 112 15 79 1 28 Cannon 139 | . 16 15 67 . 41 Launcher 1 | . . . 1 . . Special . | . . . . . . Kinetic 123 | . 108 . 1 . 14 Thermal 251 | . 20 30 145 1 55 Explosive 1 | . . . 1 . . Electromagnetic . | . . . . . . Robot Hit Streak 35 | . 31 35 24 . 21 Robot Miss Streak 3 | . 3 2 2 . 2 Penetration Max . | . . . . . . Secondary Targets . | . . . . . . Shots Hit Robots 332 | . 110 24 103 37 58 Core Hits 135 | . 42 14 33 17 29 Critical Kills 2 | . . . 2 . . Critical Parts Destroyed 1 | . . . 1 . . Critical Strikes 7 | . . . 4 2 1 Burn 1 | . . . . . 1 Destroy 4 | . . . 4 . . Sever 2 | . . . . 2 . Melee Attacks 54 | . . . 14 40 . Impact . | . . . . . . Slashing 54 | . . . 14 40 . Piercing . | . . . . . . Sneak Attacks 9 | . . . . 9 . Combat Hostiles 4 | . . . . 4 . Follow-up Attacks . | . . . . . . Damage Inflicted 6840 | . 1024 571 2004 2144 1097 Guns 2455 | . 763 163 1180 . 349 Cannons 2027 | . 261 227 791 . 748 Explosions 214 | . . 181 33 . . Melee 2144 | . . . . 2144 . Ramming . | . . . . . . Kinetic 994 | . 722 . . . 272 Thermal 3669 | . 302 571 1971 . 825 Explosive 33 | . . . 33 . . Electromagnetic . | . . . . . . Impact . | . . . . . . Slashing 2144 | . . . . 2144 . Piercing . | . . . . . . Highest Corruption 1 | . . . . 1 1 Average Corruption 1 | . . . . 1 1 Corruption Purged . | . . . . . . Corruption Blocked . | . . . . . . Effects 44 | . . . . 16 28 Message Errors 12 | . . . . 4 8 Matter Fused 6 | . . . . 3 3 Heat Flow Errors 9 | . . . . . 9 Energy Discharges 8 | . . . . 4 4 Parts Rejected 1 | . . . . 1 . Parts Fused 1 | . . . . 1 . Data Loss (minor) 3 | . . . . 1 2 Data Loss (major) 1 | . . . . 1 . Misfires 2 | . . . . 1 1 Weapon Failures 1 | . . . . . 1 Overload Shots . | . . . . . . Overflow Damage 300 | . 15 . . 280 5 Projectiles 20 | . 15 . . . 5 Explosions . | . . . . . . Melee 280 | . . . . 280 . Knockbacks 4 | . . . . . 4 Impact . | . . . . . . Kinetic 4 | . . . . . 4 Secondary . | . . . . . . Self-Inflicted Damage 25 | . . . 25 . . Shots 1 | . . . 1 . . Rammed . | . . . . . . Targets Rammed . | . . . . . . Kicked . | . . . . . . Crushed . | . . . . . . Highest Temperature 305 | . 305 . . . 229 Average Temperature 57 | . 61 . . . 48 Received Heat Transfer 633 | . 279 21 126 87 120 Effects 1 | . 1 . . . . Energy Bleed 1 | . 1 . . . . Siege Activations . | . . . . . . Robots Corrupted . | . . . . . . Combat Hostiles . | . . . . . . Parts Fried . | . . . . . . Impact Corruptions . | . . . . . . Robots Melted . | . . . . . . Combat Hostiles . | . . . . . . Parts Melted 9 | . 1 . 4 . 4 Heat Transferred 6541 | . 655 1065 3211 . 1610 Parts Sabotaged . | . . . . . . Parts Stolen 1 | . . . . . 1 Parts Stripped . | . . . . . . Power Chain Reactions . | . . . . . . Alert | -11 -10 -10 -10 -9 -9 ------- Run | Yrd Mat Min Sub Rec Scr Peak Influence 311 | . 311 289 . 135 . Initial 99 | . . 99 . . . Average 71 | . 154 180 . 35 . Maximum Alert Level 1 | . 1 1 . . . Low Security (%) 90 | 100 70 58 . 100 . Level 1 9 | . 29 41 . . . Level 2 . | . . . . . . Level 3 . | . . . . . . Level 4 . | . . . . . . Level 5 . | . . . . . . High Security . | . . . . . . Max Security . | . . . . . . Squads Dispatched 3 | . 3 . . . . Investigation 3 | . 3 . . . . Extermination . | . . . . . . Reinforcement . | . . . . . . Assault . | . . . . . . Garrison . | . . . . . . Intercept . | . . . . . . Searches Triggered . | . . . . . . Construction Impeded . | . . . . . . Haulers Reinforced . | . . . . . . Active Scanning Responses . | . . . . . . Cargo Convoy Interrupts . | . . . . . . Stealth | -11 -10 -10 -10 -9 -9 --------- Run | Yrd Mat Min Sub Rec Scr Distress Signals 2 | . 1 1 . . . Communications Jammed . | . . . . . . Distress Signals . | . . . . . . Times Spotted 66 | . 19 7 24 6 10 Peak Tracking Total 7 | . 3 3 6 3 7 Tactical Retreats 2 | . . . 2 . . Traps | -11 -10 -10 -10 -9 -9 ------- Run | Yrd Mat Min Sub Rec Scr Traps Triggered 2 | . 1 . 1 . . Indirectly . | . . . . . . Trap Hack Attempts . | . . . . . . Triggered . | . . . . . . Disarmed . | . . . . . . Reprogrammed . | . . . . . . Reused . | . . . . . . Traps Extracted . | . . . . . . Installed . | . . . . . . Triggered . | . . . . . . Machines | -11 -10 -10 -10 -9 -9 ---------- Run | Yrd Mat Min Sub Rec Scr Machines Disabled 9 | . . 1 2 . 6 Max in Single Turn 1 | . . 1 1 . 1 Machines Repaired . | . . . . . . Machines Dismantled . | . . . . . . Machines Sabotaged . | . . . . . . Overloaded Fab Kills . | . . . . . . Hacking | -11 -10 -10 -10 -9 -9 --------- Run | Yrd Mat Min Sub Rec Scr Machines Accessed 11 | . 2 . 1 8 . Terminals 1 | . . . . 1 . Fabricators . | . . . . . . Repair Stations . | . . . . . . Recycling Units 9 | . 2 . . 7 . Scanalyzers . | . . . . . . Garrison Access . | . . . . . . Total Hacks 21 | . 2 . 5 14 . Successful 17 | . 2 . 5 10 . Failed 4 | . . . . 4 . Catastrophic . | . . . . . . Database Lockouts . | . . . . . . Manual 16 | . 2 . . 14 . Terminals 4 | . . . . 4 . Fabricators . | . . . . . . Repair Stations . | . . . . . . Recycling Units 12 | . 2 . . 10 . Scanalyzers . | . . . . . . Garrison Access . | . . . . . . Terminal Hacks 6 | . . . 5 1 . Record 5 | . . . 5 . . Recycling Unit Index 1 | . . . . 1 . Fabricator Hacks . | . . . . . . Repair Station Hacks . | . . . . . . Recycling Unit Hacks . | . . . . . . Scanalyzer . | . . . . . . Garrison Access Hacks . | . . . . . . Unauthorized Hacks 11 | . 2 . . 9 . Terminals 1 | . . . . 1 . Botnet 1 | . . . . 1 . Fabricators . | . . . . . . Repair Stations . | . . . . . . Recycling Units 10 | . 2 . . 8 . Mask 1 | . . . . 1 . Tunnel 9 | . 2 . . 7 . Scanalyzers . | . . . . . . Garrison Access . | . . . . . . Data Cores Recovered . | . . . . . . Used . | . . . . . . Hacking Detections 2 | . . . . 2 . Full Trace Events . | . . . . . . Feedback Events . | . . . . . . Feedback Blocked . | . . . . . . Robot Schematics Acquired . | . . . . . . Robots Built . | . . . . . . Authchips . | . . . . . . Time . | . . . . . . Total Robot Build Rating . | . . . . . . Part Schematics Acquired . | . . . . . . Parts Built . | . . . . . . Authchips . | . . . . . . Time . | . . . . . . Total Part Build Rating . | . . . . . . Parts Repaired . | . . . . . . Time . | . . . . . . Parts Recycled . | . . . . . . Recycled Matter . | . . . . . . Retrieved Matter . | . . . . . . Retrieved Components . | . . . . . . Parts Scanalyzed . | . . . . . . Part Schematics Acquired . | . . . . . . Parts Damaged . | . . . . . . Bothacking | -11 -10 -10 -10 -9 -9 ------------ Run | Yrd Mat Min Sub Rec Scr Used RIF Installer . | . . . . . . Robots Hacked . | . . . . . . Non-combat . | . . . . . . Combat . | . . . . . . Robot Hacks Applied . | . . . . . . Relay Couplers Released . | . . . . . . Fabnet Peak Effective % . | . . . . . . Robots Rewired 9 | . . . . 9 . Allies Hacked . | . . . . . . Hacks Repelled . | . . . . . . Allies | -11 -10 -10 -10 -9 -9 -------- Run | Yrd Mat Min Sub Rec Scr Total Allies 9 | . . . . 9 . Largest Group 9 | . . . . 9 9 Highest-Rated Group 119 | . . . . 119 119 Highest-Rated Ally 21 | . . . . 21 21 Total Orders 11 | . . . . 2 9 STAY 9 | . . . . . 9 FOLLOW 1 | . . . . 1 . PICKUP 1 | . . . . 1 . Ally Attacks 29 | . . . . . 29 Total Damage 456 | . . . . . 456 Kills 5 | . . . . . 5 Allies Corrupted . | . . . . . . Allies Melted . | . . . . . . Intel | -11 -10 -10 -10 -9 -9 ------- Run | Yrd Mat Min Sub Rec Scr Robot Analysis Total . | . . . . . . Derelict Logs Recovered 3 | . . 1 2 . . Drone Launches . | . . . . . . Drone Recoveries . | . . . . . . Exploration | -11 -10 -10 -10 -9 -9 ------------- Run | Yrd Mat Min Sub Rec Scr Turns Passed 9747 | 39 554 409 2438 2419 3888 Spaces Moved 7081 | 35 719 661 2198 1186 2282 Core 1 | 1 . . . . . Treads 2645 | . . . . 363 2282 Legs . | . . . . . . Wheels 146 | 34 112 . . . . Hover . | . . . . . . Flight 4289 | . 607 661 2198 823 . Fastest Speed 31 | 50 34 31 31 160 160 Average Speed 119 | 88 42 35 94 180 160 Slowest Speed 240 | 90 122 114 191 240 160 Overloaded Moves . | . . . . . . Propulsion Burnouts . | . . . . . . Robots Hopped 22 | . 16 4 2 . . Cave-ins Triggered . | . . . . . . Exploration Rate (%) 74 | 3 94 99 95 98 57 Regions Visited 5 Branch Regions 4 Pre-discovered Areas 11 | . 2 . 2 7 . Known Exits Taken 4 | . 1 1 1 1 . Unknown Exits Taken 1 | 1 . . . . . Scrap Searched 14 | . . 1 9 . 4 Spaces Dug 8 | . . . 8 . . Terrain Destroyed 30 | . . 13 17 . . Melee 8 | . . . 8 . . Projectile 1 | . . . 1 . . AOE 21 | . . 13 8 . . Terrain Rammed . | . . . . . . Walls Destroyed . | . . . . . . Machines Disabled . | . . . . . . Actions | -11 -10 -10 -10 -9 -9 --------- Run | Yrd Mat Min Sub Rec Scr Total 7952 | 40 838 797 2384 1429 2464 Wait 371 | . 42 114 50 75 90 Move 7033 | 34 687 652 2193 1185 2282 Hop 21 | . 15 4 2 . . Pick Up 29 | . 3 1 3 9 13 Fast Attach 25 | 6 1 3 4 2 9 Attach 6 | . 1 . 1 4 . Detach . | . . . . . . Swap 9 | . 5 1 3 . . Drop 37 | . . 1 7 11 18 Fire 188 | . 64 15 80 . 29 Melee 54 | . . . 14 40 . Ram . | . . . . . . Kick . | . . . . . . Crush . | . . . . . . Escape Stasis . | . . . . . . Rewire 80 | . . . . 80 . Trap . | . . . . . . Miscellaneous 99 | . 20 6 27 23 23 Route ------- -11/Scrapyard -10/Materials (discovered 5 exits: *Mat x3 / *Min x2) -10/Mines (discovered 3 exits: *Mat x2 / *Sub) -10/Subcaves (discovered 3 exits: *Mat x2 / *Rec) -9/Recycling (discovered 2 exits: *Fac / *Scr) -9/Scraptown (discovered 1 exit: [*Fac]) History --------- Turn | Location | Event 1 | -11/Scrapyard | Upgraded with Power slot (x1) 1 | -11/Scrapyard | Upgraded with Propulsion slot (x1) 1 | -11/Scrapyard | Upgraded with Utility slot (x1) 1 | -11/Scrapyard | Upgraded with Weapon slot (x1) 19 | -11/Scrapyard | Discovered new exit (range 16) 40 | -11/Scrapyard | Entered Materials 153 | -10/Materials | Discovered new exit (range 16) 262 | -10/Materials | Upgraded with Propulsion slot (x1) 285 | -10/Materials | Discovered new exit (range 10) 308 | -10/Materials | Build established: Mutant 369 | -10/Materials | Discovered new exit (range 3) 422 | -10/Materials | Discovered new exit (range 5) 464 | -10/Materials | Reached level 2 483 | -10/Materials | Discovered new exit (range 11) 487 | -10/Materials | Identified exit to Materials 523 | -10/Materials | Identified exit to Mines 594 | -10/Materials | Entered Mines 621 | -10/Mines | Learned Materials interactive machine intel 625 | -10/Mines | Discovered exit to Materials (range 6) 632 | -10/Mines | Received a Rocket Launcher from a helpful Derelict 737 | -10/Mines | Discovered exit to Materials (range 12) 743 | -10/Mines | Assembled infested the area 748 | -10/Mines | Assisted by a Guerilla fighting off Assembled 825 | -10/Mines | Reached level 3 842 | -10/Mines | Found a damaged Exp. Sensor Array with a note attached 843 | -10/Mines | Upgraded with Utility slot (x1) 843 | -10/Mines | Found Prototype Device 843 | -10/Mines | Identified Exp. Sensor Array 844 | -10/Mines | Upgraded with Propulsion slot (x1) 996 | -10/Mines | Discovered new exit (range 3) 1003 | -10/Mines | Identified exit to Subcaves 1003 | -10/Mines | Entered Subcaves 1005 | -10/Subcaves | Reached level 4 1112 | -10/Subcaves | Shifting Twisted Machinery released Sub. Laser 1133 | -10/Subcaves | Shifting Twisted Machinery released Sub. Machine Gun 1252 | -10/Subcaves | A swath of the cavern ceiling suddenly collapsed 1286 | -10/Subcaves | Shifting Twisted Machinery released Shrapnel Trap 1298 | -10/Subcaves | Shifting Twisted Machinery released Sub. Laser 1430 | -10/Subcaves | Build established: Sprinter 1456 | -10/Subcaves | Ambushed by Subdweller buried in earth 1500 | -10/Subcaves | Learned location of Zion (-6) 1517 | -10/Subcaves | Upgraded with Utility slot (x1) 1623 | -10/Subcaves | Core integrity fell below 50% 1673 | -10/Subcaves | Discovered new exit (range 13) 1696 | -10/Subcaves | Visited 4L-MR0's lab 1702 | -10/Subcaves | Found Prototype Protection 1702 | -10/Subcaves | Identified Tower Shield 1703 | -10/Subcaves | Attached Tower Shield, gained temporary slots: Power, Propulsion x2, Utility x2, Weapon x2 2000 | -10/Subcaves | Build established: Mutant 2091 | -10/Subcaves | Visited Clippyterm 2096 | -10/Subcaves | Learned Research machine intel 2096 | -10/Subcaves | Learned 40 Factory zone layouts 2173 | -10/Subcaves | Discovered new exit (range 11) 2213 | -10/Subcaves | Discovered new exit (range 12) 2232 | -10/Subcaves | Identified exit to Materials 2462 | -10/Subcaves | Shifting Twisted Machinery released Battle Cannon 2518 | -10/Subcaves | Shifting Twisted Machinery released Mak. Spear 2597 | -10/Subcaves | A swath of the cavern ceiling suddenly collapsed 3438 | -10/Subcaves | Identified exit to Recycling 3441 | -10/Subcaves | Entered Recycling 3443 | -9/Recycling | Reached level 5 4693 | -9/Recycling | Scanned before Scraplab entrance 4855 | -9/Recycling | Discovered new exit (range 16) 4918 | -9/Recycling | Identified exit to Factory 5294 | -9/Recycling | Reached level 6 5452 | -9/Recycling | Build established: Scavenger-Mutant 5593 | -9/Recycling | Upgraded with Weapon slot (x1) 5832 | -9/Recycling | Build established: Commander-Mutant 5833 | -9/Recycling | Entered Scraplab 5846 | -9/Recycling | Discovered new exit (range 2) 5846 | -9/Recycling | Identified exit to Scraptown 5860 | -9/Recycling | Entered Scraptown 5860 | -9/Scraptown | Accompanied by 9 allies 6514 | -9/Scraptown | Heard Great Nut preacher, LISTEN AND RECITE! 6530 | -9/Scraptown | Visited Junk Repository 6601 | -9/Scraptown | Visited Awakened 6622 | -9/Scraptown | Visited Fellowship of the Rings 6676 | -9/Scraptown | Visited Symbiants 6788 | -9/Scraptown | Discovered new exit (range 11) 7036 | -9/Scraptown | Visited TADAMA 7060 | -9/Scraptown | Visited Cyclists 7092 | -9/Scraptown | Visited Artisan Demo Area 9453 | -9/Scraptown | Attacked by Scraptown defenders 9672 | -9/Scraptown | Lost 6 allies 9748 | -9/Scraptown | Self-destructed Last Messages --------------- 09671_ Siege Slug penetrates Machine. 09683_ 4D-WVS(E) destroyed. 09693_ Used Protomatter to restore core integrity (+183, depleted) 09729_ ANNOUNCEMENT: HQ reinforcements inbound. Hold tight! 09733_ Triborg activates siege mode. 09733_ Siege Slug penetrates Wall. 09735_ Penetrated by Siege Slug. 09737_ Imp. Treads blasted off. 09737_ Siege Slug penetrates Machine. 09739_ Penetrated by Siege Slug. 09739_ Particle Cannon blasted off. 09739_ Siege Slug penetrates Machine. 09741_ Penetrated by Siege Slug. 09743_ Siege Slug penetrates Wall. 09745_ Penetrated by Siege Slug. 09745_ Siege Slug penetrates Earth. 09747_ Penetrated by Siege Slug. 09747_ Siege Slug penetrates Earth. Map ----- +----------------------------------------------------+ | ??""" " ?########?????# | | ???""""" " #"""X""#?????# | | ??""" "" " #" "#?????# | | ?#"" #" "#?????##### | | ??"""" " #" "#?????????# | | ??"" " #" "#????????## | | ?#"" """"""" #" "#????????# | | ??## ####### #"" """########### | | ???????????# ? | | ?###?####### | | ?#"" """""""=%#"" """##"" """### | | ?#" " " "" #" "##"" "#?# | | ?#" " " "" *#"" "##"" "#?# | | ?#" " ""?%#"" "##""] "#?# | | ?#" "" [#"" " "##"% "#?# | | ?#" #"""" "##"!| "#?# | | ?#"" " #""""""##""""""#?# | | ?#""" j""TT################?# | | ?#"" ""TT########?#####???# | | ?#""" " %="""""""#?#"""#???# | | ?#"""""" !%" [!"#?#" "#???# | | ??###### #;; !"] ""]"#?# #???# | | ???# ; ;==%["""!"#?# ##### | | ?###=###;;;;!%= """!"#?# | | ?#""["%=% %[%% """ "#?# | | ?# [!=]@%%%!%*% """/"#?# | | ?#"!"" %==* =! "" "#?##### ## | | ?#" "% ""% % " """ "#?????# #? | | ?#" " """ """ "####### ## | | ?#" """" " """!"##""""" "" | | ?#" """ " ]"##"""%" " | | ?# " """""""##" [!! | | ?# """"" "" %#########""""" "" | | ?;;######### %##??????###### ## | | ????????# *% ############" ## | | #????????# %%* [?* | | ??????????# !! = | | ??????????# % ###"""" """"##### | | ??????????##""##?#""" """#???? | | ????????????? #??#""" ""#???? | | ????????????? ???#"""" "#???? | | ?????????????????#""""" "#???? | | ?????????????????#"""""""""#???? | | ?????????????????###########???? | | | | | | | | | | | | | +----------------------------------------------------+ Best States ------------- Heat Dissipation 77 Energy Generation 15 Energy Capacity 400 Matter Stores 300 Matter Capacity 300 Sight Range 16 Robot Scan Range 26 Terrain Scan Density 10 Armor Coverage 2150 Resistance: KI 40 Resistance: TH 20 Resistance: EX 20 Resistance: EM 20 Resistance: I 20 Resistance: S 20 Resistance: P 20 Evasion (%) 63 Recoil Reduction 4 Offensive Hacking 10 Item Schematics ----------------- None Robot Schematics ------------------ None Fabricated ------------ Nothing Alien Tech Used ----------------- None Achievements -------------- None Challenges ------------ None RPGLIKE | -11 -10 -10 -10 -9 -9 --------- Run | Yrd Mat Min Sub Rec Scr Levels Raised 5 | . 1 1 1 2 . XP Earned 12457 | 4000 2140 1395 1600 2780 542 XP Spent 11205 | 2000 2420 1900 2125 800 1960 Upgrades 40 | 4 11 2 6 1 16 Power Slot 1 | 1 . . . . . Propulsion Slot 3 | 1 1 1 . . . Utility Slot 3 | 1 . 1 1 . . Weapon Slot 2 | 1 . . . 1 . Core Integrity 14 | . . . . . 14 Heat Dissipation 7 | . 7 . . . . Mass Support 2 | . 1 . 1 . . Inventory Capacity 2 | . 2 . . . . Sensor Range 3 | . . . 3 . . KI Damage % 2 | . . . . . 2 TH Damage % 1 | . . . 1 . . Protomatter Created 985 | . 289 17 244 218 217 Integrity Restored 1895 | . 372 83 464 493 483 Core 1330 | . 284 60 387 409 190 Parts 565 | . 88 23 77 84 293 Protomatter Decayed 323 | . 119 5 81 . 118 Game ------ Seed ZhirovIonicKinecellerator Manual? 0 Play Time 01:13:16 Cumulative 132.6 hours Start 2024.10.04 @ 17:46:20 End 2024.10.05 @ 07:10:29 Sessions 3 Manual Loads 0 Difficulty Adventurer Special Mode Winter2019/RPGLIKE Game No. 76 Rogue 0 Adventurer 76 Explorer 0 Win Type - Total 6 Types 2/0/2/2/0/0/0/0/0 Lore% 61 Gallery% 57 Achievement% 71 Wizard Run 0 Options --------- Layout 2 ASCII 0 Keyboard 0 Movement Numpad Keybinds 0 Fullscreen 2 Font 24/Smallcaps Map View 50x44 Zoom Use 0% Tactical HUD 1 Map Filters NONE Filters NONE Steam 1 RUN: edcce41b-75d8-458a-92be-d724854486a5